bitfinex/quotes_BTCUSD_20240818
["timestamp","ask_amount","ask_price","bid_price","bid_amount"]
[1723971675811,1.37785909,59838.0,59837.0,0.00313325]
[1723971677599,1.37785909,59838.0,59837.0,0.00302516]
[1723971677834,1.38085909,59838.0,59837.0,0.00302516]
[1723971678233,1.37985909,59838.0,59837.0,0.00302516]
[1723971678589,1.37985909,59838.0,59837.0,2.516e-05]
[1723971678785,0.964086,59830.0,59829.0,0.0009075]
[1723971678991,1.13019189,59830.0,59829.0,0.0009075]
[1723971679194,1.65339328,59830.0,59829.0,0.0009075]
[1723971679448,1.77639328,59830.0,59829.0,0.0009075]
[1723971679647,1.90238389,59830.0,59829.0,0.0009075]
[1723971679855,1.72618389,59830.0,59829.0,0.00070762]
[1723971680034,1.72618389,59830.0,59829.0,0.00170762]
[1723971680241,1.72718389,59830.0,59829.0,0.00170762]
[1723971681417,1.72818389,59830.0,59829.0,0.00170762]
[1723971682050,1.73820413,59830.0,59829.0,0.00170762]
[1723971682225,1.73720413,59830.0,59829.0,0.00170762]
[1723971682381,1.73520413,59830.0,59829.0,0.00170762]
[1723971682724,1.90675867,59830.0,59829.0,0.00159015]
[1723971682960,1.73520413,59830.0,59829.0,0.00159015]
[1723971683558,1.73520413,59830.0,59829.0,0.00147291]
[1723971683791,1.73420413,59830.0,59829.0,0.00147291]
[1723971683918,1.41890813,59830.0,59829.0,0.00147291]
[1723971684120,1.41790813,59830.0,59829.0,0.00147291]
[1723971684709,1.41990813,59830.0,59829.0,0.00147291]
[1723971684910,1.42090813,59830.0,59829.0,0.00147291]
[1723971685106,1.42290813,59830.0,59829.0,0.00147291]
[1723971686236,1.50420813,59830.0,59829.0,0.00147291]
[1723971686639,1.67576267,59830.0,59829.0,0.00147291]
[1723971686833,1.67276267,59830.0,59829.0,0.00147291]
[1723971687127,1.67276267,59830.0,59829.0,0.00134074]
[1723971687834,1.67176267,59830.0,59829.0,0.00134074]
[1723971688355,1.67576267,59830.0,59829.0,0.00134074]
[1723971690276,1.67476267,59830.0,59829.0,0.00134074]
[1723971690709,1.67576267,59830.0,59829.0,0.00134074]
[1723971691139,1.67276267,59830.0,59829.0,0.00134074]
[1723971691550,1.67576267,59830.0,59829.0,0.00134074]
[1723971692666,1.90975867,59830.0,59829.0,0.00134074]
[1723971694233,1.73820413,59830.0,59829.0,0.00134074]
[1723971694453,1.65690413,59830.0,59829.0,0.00134074]
[1723971695449,1.73820413,59830.0,59829.0,0.00134074]
[1723971696474,1.73520413,59830.0,59829.0,0.00115003]
[1723971696675,1.90975867,59830.0,59829.0,0.00115003]
[1723971696887,1.73820413,59830.0,59829.0,0.00115003]
[1723971697821,1.73720413,59830.0,59829.0,0.0010009]
[1723971698117,1.73820413,59830.0,59829.0,0.0010009]
[1723971698698,1.73820413,59830.0,59829.0,0.00080842]
[1723971699018,1.90975867,59830.0,59829.0,0.00080842]
[1723971699624,1.90975867,59830.0,59829.0,0.00041685]
[1723971699943,1.73820413,59830.0,59829.0,0.00041685]
[1723971700314,1.73720413,59830.0,59829.0,0.00041685]
[1723971700523,1.73520413,59830.0,59829.0,0.00041685]
[1723971700952,1.65690413,59830.0,59829.0,0.00041685]
[1723971701128,1.65390413,59830.0,59829.0,0.00041685]
[1723971701328,1.73520413,59830.0,59829.0,7.074e-05]
[1723971701717,1.90675867,59830.0,59829.0,7.074e-05]
[1723971702515,1.90675867,59830.0,59825.0,0.0009075]
[1723971702516,1.192549,59826.0,59825.0,0.0009075]
[1723971702831,1.48193427,59826.0,59825.0,0.0009075]
[1723971703441,1.48193427,59826.0,59825.0,0.00061904]
[1723971703647,1.48393427,59826.0,59825.0,0.00061904]
[1723971704048,1.48493427,59826.0,59825.0,0.00061904]
[1723971705385,1.48493427,59826.0,59825.0,0.00023493]
[1723971706516,1.48493427,59826.0,59825.0,1.263e-05]
[1723971706517,1.40363427,59826.0,59825.0,1.263e-05]
[1723971707308,1.085067,59825.0,59824.0,0.00076316]
[1723971707509,1.27050151,59825.0,59824.0,0.00076316]
[1723971709357,1.27250151,59825.0,59824.0,0.00076316]
[1723971712265,1.49710166,59825.0,59824.0,0.00076316]
[1723971717004,1.41580166,59825.0,59824.0,0.00076316]
[1723971717122,1.49710166,59825.0,59824.0,0.00076316]
[1723971719798,1.35380151,59825.0,59824.0,0.00076316]
[1723971720582,1.27050151,59825.0,59824.0,0.00076316]
[1723971721674,1.35180151,59825.0,59824.0,0.00076316]
[1723971722425,1.35180151,59825.0,59824.0,0.0006753]
[1723971724504,1.35180151,59825.0,59824.0,0.00058916]
[1723971725084,0.53845651,59825.0,59824.0,0.14148916]
[1723971725350,0.353022,59825.0,59824.0,0.14148916]
[1723971727686,0.353022,59825.0,59824.0,0.14141885]
[1723971727886,0.434322,59825.0,59824.0,0.14141885]
[1723971728638,0.434322,59825.0,59824.0,0.14131519]
[1723971729250,0.51982635,59825.0,59824.0,0.14131519]
[1723971729555,0.75384135,59825.0,59824.0,0.14131519]
[1723971729754,0.98785635,59825.0,59824.0,0.07692789]
[1723971730397,0.78384135,59825.0,59824.0,0.07692789]
[1723971730816,0.78384135,59825.0,59824.0,0.07682598]
[1723971731918,0.78384135,59825.0,59824.0,0.07670943]
[1723971732140,1.01785635,59825.0,59824.0,0.07670943]
[1723971732509,0.78384135,59825.0,59824.0,0.07670943]
[1723971732692,1.01785635,59825.0,59824.0,0.07670943]
[1723971732873,0.78384135,59825.0,59824.0,0.07670943]
[1723971733844,1.01785635,59825.0,59824.0,0.07670943]
[1723971735725,0.002,59825.0,59824.0,0.14180943]
[1723971735946,0.119007,59825.0,59824.0,0.14180943]
[1723971736155,0.353022,59825.0,59824.0,0.14180943]
[1723971737895,0.434322,59825.0,59824.0,0.14180943]
[1723971738229,0.668337,59825.0,59824.0,0.14180943]
[1723971738575,0.434322,59825.0,59824.0,0.13672767]
[1723971740019,0.434322,59825.0,59824.0,0.13664399]
[1723971740510,0.668337,59825.0,59824.0,0.13664399]
[1723971740772,0.75384135,59825.0,59824.0,0.13664399]
[1723971741004,0.75384135,59825.0,59824.0,0.1365585]
[1723971742936,0.75384135,59825.0,59824.0,0.4875865]
[1723971742937,0.002,59825.0,59824.0,0.4875865]
[1723971743347,0.002,59825.0,59824.0,1.9875865]
[1723971744146,0.000825,59826.0,59825.0,0.495922]
[1723971745310,0.000825,59826.0,59825.0,0.261907]
[1723971745508,0.000825,59826.0,59825.0,0.1449]
[1723971745730,0.000825,59826.0,59825.0,0.261907]
[1723971746621,0.000825,59826.0,59825.0,0.1479]
[1723971746861,0.000825,59826.0,59825.0,0.264907]
[1723971747741,0.000825,59826.0,59825.0,1.764907]
[1723971747938,0.000825,59826.0,59825.0,1.6479]
[1723971748952,0.11783,59826.0,59825.0,0.1479]
[1723971749143,0.11783,59826.0,59825.0,0.14785374]
[1723971750066,0.11783,59826.0,59825.0,0.14780788]
[1723971751559,0.11783,59826.0,59825.0,0.14776228]
[1723971752953,0.11783,59826.0,59825.0,1.64776228]
[1723971753632,0.43720566,59826.0,59825.0,0.0828]
[1723971754451,0.43720566,59826.0,59825.0,0.003]
[1723971754452,0.67121666,59826.0,59825.0,0.003]
[1723971755913,0.90522766,59826.0,59825.0,0.003]
[1723971756124,1.0206478,59826.0,59825.0,0.003]
[1723971756402,0.96712766,59826.0,59825.0,0.003]
[1723971756904,0.67121666,59826.0,59825.0,0.003]
[1723971758174,0.90522766,59826.0,59825.0,0.003]
[1723971759666,0.67121666,59826.0,59825.0,0.003]
[1723971760002,0.90522766,59826.0,59825.0,0.003]
[1723971761503,0.67121666,59826.0,59825.0,0.003]
[1723971762519,0.67121666,59826.0,59825.0,0.1422]
[1723971764045,0.67121666,59826.0,59825.0,0.003]
[1723971767025,0.90522766,59826.0,59825.0,0.003]
[1723971767838,0.67121666,59826.0,59825.0,0.003]
[1723971768382,0.67121666,59826.0,59825.0,0.0039075]
[1723971769196,0.67121666,59826.0,59825.0,0.1431075]
[1723971769945,0.75251666,59826.0,59825.0,0.1431075]
[1723971770546,0.75251666,59826.0,59825.0,0.0039075]
[1723971770695,0.75251666,59826.0,59825.0,0.0812075]
[1723971770906,0.75251666,59826.0,59825.0,0.0039075]
[1723971778300,1.04892766,59826.0,59825.0,0.0039075]
[1723971778501,1.33909279,59826.0,59825.0,0.0039075]
[1723971778722,1.23012766,59826.0,59825.0,0.0039075]
[1723971780451,1.08652766,59826.0,59825.0,0.0039075]
[1723971813721,1.08652766,59826.0,59825.0,0.1423075]
[1723971814787,1.08652766,59826.0,59825.0,0.0802075]
[1723971815803,1.08652766,59826.0,59825.0,0.0039075]
[1723971826530,0.85251666,59826.0,59825.0,0.0039075]
[1723971826727,0.85251666,59826.0,59825.0,0.1423075]
[1723971830120,0.85251666,59826.0,59825.0,0.0802075]
[1723971835223,0.53720566,59826.0,59825.0,0.0802075]
[1723971835422,0.000825,59826.0,59825.0,0.1951162]
[1723971835880,0.000825,59826.0,59825.0,0.59097649]
[1723971836412,0.000825,59826.0,59825.0,0.70798349]
[1723971836612,0.000825,59826.0,59825.0,0.51611344]
[1723971837434,0.000825,59826.0,59825.0,0.59092334]
[1723971837637,0.000825,59826.0,59825.0,0.1452075]
[1723971837839,0.000825,59826.0,59825.0,0.2200174]
[1723971838452,0.000825,59826.0,59825.0,0.1452075]
[1723971838654,0.000825,59826.0,59825.0,0.19505812]
[1723971838857,0.000825,59826.0,59825.0,0.1452075]
[1723971839783,0.11783,59826.0,59825.0,0.1452075]
[1723971846552,0.000825,59826.0,59825.0,0.1452075]
[1723971847847,0.11783,59826.0,59825.0,0.1452075]
[1723971851444,0.351841,59826.0,59825.0,0.0802075]
[1723971851866,0.351841,59826.0,59825.0,0.0039075]
[1723971851867,1.01684811,59826.0,59825.0,0.0039075]
[1723971852108,1.18284811,59826.0,59825.0,0.0039075]
[1723971852921,1.14932766,59826.0,59825.0,0.0039075]
[1723971853526,1.14932766,59826.0,59825.0,0.0049075]
[1723971853527,1.15132766,59826.0,59825.0,0.0049075]
[1723971854020,1.15132766,59826.0,59825.0,0.0019075]
[1723971854398,1.15232766,59826.0,59825.0,0.0019075]
[1723971855023,1.15332766,59826.0,59825.0,0.0019075]
[1723971855429,1.15132766,59826.0,59825.0,0.0009075]
[1723971855832,1.15332766,59826.0,59825.0,0.0009075]
[1723971859421,1.41833866,59826.0,59825.0,0.0009075]
[1723971859645,1.41433866,59826.0,59825.0,0.0009075]
[1723971859843,1.41633866,59826.0,59825.0,0.0009075]
[1723971860043,1.41733866,59826.0,59825.0,0.0009075]
[1723971860246,1.41633866,59826.0,59825.0,0.0009075]
[1723971861205,1.56867489,59826.0,59825.0,0.0009075]
[1723971862361,1.57067489,59826.0,59825.0,0.0009075]
[1723971863240,1.56867489,59826.0,59825.0,0.0009075]
[1723971863457,1.56767489,59826.0,59825.0,0.0009075]
[1723971864291,1.56867489,59826.0,59825.0,0.0009075]
[1723971865182,1.57067489,59826.0,59825.0,0.0009075]
[1723971866227,1.56767489,59826.0,59825.0,0.0009075]
[1723971867796,1.56867489,59826.0,59825.0,0.0009075]
[1723971869498,1.41733866,59826.0,59825.0,0.0009075]
[1723971869975,1.41933866,59826.0,59825.0,0.0009075]
[1723971872220,1.41833866,59826.0,59825.0,0.0009075]
[1723971874009,1.41933866,59826.0,59825.0,0.0009075]
[1723971874231,1.41833866,59826.0,59825.0,0.0009075]
[1723971874675,1.49892494,59826.0,59825.0,0.0009075]
[1723971874951,1.52292494,59826.0,59825.0,0.0009075]
[1723971875366,1.52392494,59826.0,59825.0,0.0009075]
[1723971876461,1.52092494,59826.0,59825.0,0.0009075]
[1723971878478,1.44433866,59826.0,59825.0,0.0009075]
[1723971878929,1.44033866,59826.0,59825.0,0.0009075]
[1723971879159,1.44233866,59826.0,59825.0,0.0009075]
[1723971879586,1.44133866,59826.0,59825.0,0.0009075]
[1723971882179,1.44033866,59826.0,59825.0,0.0009075]
[1723971882619,1.52363866,59826.0,59825.0,0.0009075]
[1723971884050,1.52563866,59826.0,59825.0,0.0009075]
[1723971890514,1.52263866,59826.0,59825.0,0.0009075]
[1723971890997,1.5980531,59826.0,59825.0,0.0009075]
[1723971891447,1.6000531,59826.0,59825.0,0.0009075]
[1723971893210,1.6020531,59826.0,59825.0,0.0009075]
[1723971895253,1.52563866,59826.0,59825.0,0.0009075]
[1723971897993,1.52463866,59826.0,59825.0,0.0009075]
[1723971898304,1.52263866,59826.0,59825.0,0.0009075]
[1723971899563,1.52563866,59826.0,59825.0,0.0009075]
[1723971902486,1.52263866,59826.0,59825.0,0.0009075]
[1723971902695,1.37853866,59826.0,59825.0,0.0009075]
[1723971903792,1.38153866,59826.0,59825.0,0.0009075]
[1723971904005,1.38053866,59826.0,59825.0,0.0009075]
[1723971904628,1.38153866,59826.0,59825.0,0.0009075]
[1723971904831,1.52413866,59826.0,59825.0,0.0009075]
[1723971912104,1.6956932,59826.0,59825.0,0.0009075]
[1723971912314,1.52413866,59826.0,59825.0,0.0009075]
[1723971912951,1.52313866,59826.0,59825.0,0.0009075]
[1723971913170,1.52413866,59826.0,59825.0,0.0009075]
[1723971915532,1.52313866,59826.0,59825.0,0.0009075]
[1723971915742,1.38053866,59826.0,59825.0,0.0009075]
[1723971915960,1.37853866,59826.0,59825.0,0.0009075]
[1723971916177,1.37753866,59826.0,59825.0,0.0009075]
[1723971916811,1.37953866,59826.0,59825.0,0.0009075]
[1723971917014,1.37753866,59826.0,59825.0,0.0009075]
[1723971917232,1.37853866,59826.0,59825.0,0.0009075]
[1723971919361,1.38053866,59826.0,59825.0,0.0009075]
[1723971919570,1.37853866,59826.0,59825.0,0.0009075]
[1723971919783,1.38053866,59826.0,59825.0,0.0009075]
[1723971919984,1.38153866,59826.0,59825.0,0.0009075]
[1723971920403,1.38053866,59826.0,59825.0,0.0009075]
[1723971920827,1.38153866,59826.0,59825.0,0.0009075]
[1723971921241,1.38053866,59826.0,59825.0,0.0009075]
[1723971921914,1.63827814,59826.0,59825.0,0.0009075]
[1723971922132,1.77897814,59826.0,59825.0,0.0009075]
[1723971922966,1.77797814,59826.0,59825.0,0.0009075]
[1723971923183,1.77897814,59826.0,59825.0,0.0019075]
[1723971923612,1.77797814,59826.0,59825.0,0.0009075]
[1723971923817,1.77697814,59826.0,59825.0,0.0019075]
[1723971924024,1.77697814,59826.0,59825.0,0.0029075]
[1723971924231,1.78497814,59826.0,59825.0,0.0029075]
[1723971924653,1.77697814,59826.0,59825.0,0.0019075]
[1723971924884,1.77697814,59826.0,59825.0,0.0029075]
[1723971924885,1.78497814,59826.0,59825.0,0.0029075]
[1723971929316,1.54024966,59826.0,59825.0,0.0810075]
[1723971929525,1.53724966,59826.0,59825.0,0.0810075]
[1723971929729,1.54024966,59826.0,59825.0,0.0810075]
[1723971930142,1.54024966,59826.0,59825.0,0.0029075]
[1723971930760,1.62154966,59826.0,59825.0,0.0029075]
[1723971935934,1.76024966,59826.0,59825.0,0.0029075]
[1723971936777,1.9318042,59826.0,59825.0,0.0029075]
[1723971937816,1.292082,59825.0,59824.0,0.0009075]
[1723971938025,1.63921651,59825.0,59824.0,0.0009075]
[1723971938642,1.63821651,59825.0,59824.0,0.0009075]
[1723971938845,1.81077105,59825.0,59824.0,0.0009075]
[1723971939049,1.80977105,59825.0,59824.0,0.0009075]
[1723971939453,2.31624105,59825.0,59824.0,0.0019075]
[1723971939657,2.31724105,59825.0,59824.0,0.0029075]
[1723971939866,2.32624105,59825.0,59824.0,0.0029075]
[1723971940328,2.32524105,59825.0,59824.0,0.0029075]
[1723971941250,2.32624105,59825.0,59824.0,0.0029075]
[1723971942324,2.32324105,59825.0,59824.0,0.0029075]
[1723971943570,2.32524105,59825.0,59824.0,0.0029075]
[1723971944221,2.15368651,59825.0,59824.0,0.0029075]
[1723971944638,2.15468651,59825.0,59824.0,0.0029075]
[1723971948830,1.92067151,59825.0,59824.0,0.0029075]
[1723971949084,1.78197151,59825.0,59824.0,0.0029075]
[1723971949307,1.86327151,59825.0,59824.0,0.0837075]
[1723971949731,1.75697151,59825.0,59824.0,0.1473075]
[1723971949951,1.83827151,59825.0,59824.0,0.1473075]
[1723971951104,1.86127151,59825.0,59824.0,0.1473075]
[1723971954469,1.85827151,59825.0,59824.0,0.1473075]
[1723971955108,1.86127151,59825.0,59824.0,0.1473075]
[1723971955916,1.86027151,59825.0,59824.0,0.1473075]
[1723971956131,1.86127151,59825.0,59824.0,0.1473075]
[1723971958215,1.86027151,59825.0,59824.0,0.1473075]
[1723971958419,1.86127151,59825.0,59824.0,0.1473075]
[1723971962218,1.86327151,59825.0,59824.0,0.0837075]
[1723971962640,1.96133726,59825.0,59824.0,0.0837075]
[1723971963493,1.96033726,59825.0,59824.0,0.0837075]
[1723971963943,1.96133726,59825.0,59824.0,0.0837075]
[1723971964154,1.95833726,59825.0,59824.0,0.0837075]
[1723971964992,1.95916226,59825.0,59824.0,0.0837075]
[1723971967470,1.95916226,59825.0,59824.0,0.0029075]
[1723971967887,1.96216226,59825.0,59824.0,0.1491075]
[1723971968091,1.96116226,59825.0,59824.0,0.1491075]
[1723971968521,1.95916226,59825.0,59824.0,0.0847075]
[1723971972464,1.95916226,59825.0,59824.0,0.0029075]
[1723971987915,1.95916226,59825.0,59824.0,0.00170582]
[1723971988123,1.86109651,59825.0,59824.0,0.00170582]
[1723971991023,1.94209651,59825.0,59824.0,0.00170582]
[1723971991635,1.94109651,59825.0,59824.0,0.00170582]
[1723971991842,1.93909651,59825.0,59824.0,0.00170582]
[1723971992046,1.083175,59819.0,59818.0,0.11859332]
[1723971992246,1.87486849,59819.0,59818.0,0.11859332]
[1723971992869,1.87486849,59819.0,59818.0,0.0824]
[1723971993485,1.87886849,59819.0,59818.0,0.0824]
[1723971993886,1.88586849,59819.0,59818.0,0.0834]
[1723971994093,2.05624394,59819.0,59818.0,0.001]
[1723971994330,2.05624394,59819.0,59807.0,0.0009075]
[1723971994331,1.058211,59817.0,59812.0,0.0824]
[1723971994563,1.87721041,59817.0,59812.0,0.0824]
[1723971994739,2.05851041,59817.0,59812.0,0.0824]
[1723971995021,2.25306495,59817.0,59812.0,0.0824]
[1723971995430,1.76916341,59817.0,59816.0,0.1466075]
[1723971995632,1.85046341,59817.0,59816.0,0.1466075]
[1723971996600,1.85246341,59817.0,59816.0,0.1466075]
[1723971996793,1.85046341,59817.0,59816.0,0.1466075]
[1723971997123,1.85846341,59817.0,59816.0,0.1837875]
[1723971997331,1.86246341,59817.0,59816.0,0.1837875]
[1723971997535,1.86146341,59817.0,59816.0,0.1837875]
[1723971997740,1.85646341,59817.0,59816.0,0.1837875]
[1723971997960,1.86646341,59817.0,59816.0,0.1847875]
[1723971998415,1.86846341,59817.0,59816.0,0.1847875]
[1723971998821,1.86846341,59817.0,59816.0,0.1214875]
[1723972000644,1.86646341,59817.0,59816.0,0.1214875]
[1723972001632,1.86746341,59817.0,59816.0,0.1214875]
[1723972002275,1.86846341,59817.0,59816.0,0.1214875]
[1723972002697,1.86646341,59817.0,59816.0,0.1214875]
[1723972003762,1.86746341,59817.0,59816.0,0.1214875]
[1723972003961,2.04001795,59817.0,59816.0,0.1214875]
[1723972004601,2.04001795,59817.0,59816.0,0.0390875]
[1723972005902,1.86846341,59817.0,59816.0,0.0390875]
[1723972008534,1.78716341,59817.0,59816.0,0.0390875]
[1723972008743,1.86846341,59817.0,59816.0,0.0390875]
[1723972009371,1.78516341,59817.0,59816.0,0.1847875]
[1723972009607,1.84046341,59817.0,59816.0,0.1847875]
[1723972009816,1.84146341,59817.0,59816.0,0.1847875]
[1723972010235,1.84346341,59817.0,59816.0,0.1847875]
[1723972013908,1.84346341,59817.0,59816.0,0.1214875]
[1723972014105,1.84346341,59817.0,59816.0,0.0390875]
[1723972015352,1.84246341,59817.0,59816.0,0.0390875]
[1723972015559,1.84346341,59817.0,59816.0,0.0390875]
[1723972015969,1.84246341,59817.0,59816.0,0.0390875]
[1723972016572,1.84346341,59817.0,59816.0,0.0390875]
[1723972016831,1.84246341,59817.0,59816.0,0.0390875]
[1723972017289,1.84346341,59817.0,59816.0,0.0390875]
[1723972019832,1.96171604,59817.0,59816.0,0.0390875]
[1723972020458,1.84046341,59817.0,59816.0,0.0390875]
[1723972021083,1.84346341,59817.0,59816.0,0.0390875]
[1723972022278,1.84246341,59817.0,59816.0,0.0390875]
[1723972023149,1.84046341,59817.0,59816.0,0.0390875]
[1723972025141,1.84046341,59817.0,59816.0,0.01884575]
[1723972025695,1.84046341,59817.0,59816.0,0.01975325]
[1723972026906,1.84046341,59817.0,59816.0,0.0019075]
[1723972029997,1.75916341,59817.0,59816.0,0.0019075]
[1723972030196,1.84046341,59817.0,59816.0,0.0019075]
[1723972030976,1.84046341,59817.0,59816.0,0.0197875]
[1723972033031,1.42511641,59817.0,59816.0,0.1648875]
[1723972033263,0.95702241,59817.0,59816.0,0.1648875]
[1723972033426,0.51947,59817.0,59816.0,0.21479821]
[1723972033608,0.51947,59817.0,59816.0,1.85677856]
[1723972033809,0.018,59817.0,59816.0,2.27336764]
[1723972034010,0.008,59817.0,59816.0,2.27236764]
[1723972034243,0.008,59817.0,59816.0,2.13465512]
[1723972034447,0.234842,59825.0,59816.0,2.13465512]
[1723972034448,0.000825,59825.0,59824.0,0.117009]
[1723972034828,0.000825,59825.0,59824.0,0.31191688]
[1723972035054,0.000825,59825.0,59824.0,0.89103346]
[1723972035458,0.000825,59825.0,59824.0,0.54588517]
[1723972036350,0.000825,59825.0,59824.0,0.54988517]
[1723972036578,0.000825,59825.0,59824.0,0.266109]
[1723972036779,0.000825,59825.0,59824.0,0.500128]
[1723972037331,0.000825,59825.0,59824.0,0.266109]
[1723972037537,0.000825,59825.0,59824.0,1.766109]
[1723972038359,0.000825,59825.0,59824.0,0.1491]
[1723972039360,0.001825,59825.0,59824.0,0.1561]
[1723972039558,0.118832,59825.0,59824.0,0.1561]
[1723972040172,0.001825,59825.0,59824.0,0.1561]
[1723972043408,0.118832,59825.0,59824.0,0.1561]
[1723972043816,0.001825,59825.0,59824.0,0.1561]
[1723972046885,0.118832,59825.0,59824.0,0.1561]
[1723972047338,0.001825,59825.0,59824.0,0.1561]
[1723972048992,0.001825,59825.0,59824.0,0.273109]
[1723972049193,0.001825,59825.0,59824.0,0.507128]
[1723972049401,0.001825,59825.0,59824.0,0.741147]
[1723972050541,0.001825,59825.0,59824.0,2.007128]
[1723972053556,0.001825,59825.0,59824.0,0.507128]
[1723972054164,0.001825,59825.0,59824.0,2.007128]
[1723972054370,0.001825,59825.0,59824.0,2.088428]
[1723972054574,0.001825,59825.0,59824.0,2.007128]
[1723972057030,0.001825,59825.0,59824.0,0.507128]
[1723972057436,0.001825,59825.0,59824.0,0.975166]
[1723972057641,0.000825,59826.0,59825.0,0.571422]
[1723972057865,0.000825,59826.0,59825.0,1.06013218]
[1723972058410,0.000825,59826.0,59825.0,1.06012358]
[1723972058606,0.000825,59826.0,59825.0,1.23167812]
[1723972058854,0.000825,59826.0,59825.0,1.23467812]
[1723972059010,0.001825,59826.0,59825.0,1.24067812]
[1723972059653,0.001825,59826.0,59825.0,1.47869312]
[1723972059862,0.000825,59830.0,59829.0,0.82]
[1723972060071,0.000825,59830.0,59829.0,1.23462612]
[1723972060287,0.000825,59830.0,59829.0,1.23662612]
[1723972060703,0.000825,59830.0,59829.0,1.23162612]
[1723972060908,0.000825,59830.0,59829.0,1.15032612]
[1723972061162,0.001825,59830.0,59829.0,1.23862612]
[1723972061325,0.001825,59830.0,59829.0,2.73862612]
[1723972062103,0.001825,59830.0,59829.0,2.74262612]
[1723972062552,0.001825,59830.0,59829.0,2.72195454]
[1723972062843,0.001825,59830.0,59829.0,2.74262037]
[1723972063657,0.001825,59830.0,59829.0,2.74362037]
[1723972066129,0.001825,59830.0,59829.0,2.97762037]
[1723972066390,0.001825,59830.0,59829.0,2.98162037]
[1723972066592,0.001825,59830.0,59829.0,2.97762037]
[1723972068777,0.001825,59830.0,59829.0,2.59772037]
[1723972069509,0.001825,59830.0,59829.0,2.66132037]
[1723972071447,0.001825,59830.0,59829.0,2.64065454]
[1723972071621,0.001825,59830.0,59829.0,2.66132272]
[1723972072028,0.001825,59830.0,59829.0,2.66232272]
[1723972072435,0.0002,59839.0,59830.0,0.001]
[1723972072642,0.0002,59839.0,59837.0,0.58492]
[1723972072848,0.0002,59839.0,59837.0,0.74888818]
[1723972073301,0.0002,59839.0,59837.0,2.24888818]
[1723972074153,0.0062285,59838.0,59837.0,2.24888818]
[1723972074549,0.0012285,59838.0,59837.0,2.24888818]
[1723972074905,0.0062285,59838.0,59837.0,2.24888818]
[1723972075470,0.0012285,59838.0,59837.0,2.24888818]
[1723972075979,0.0022285,59838.0,59837.0,2.26988202]
[1723972077172,0.0022285,59838.0,59837.0,2.24922]
[1723972077855,0.0022285,59838.0,59837.0,2.26988091]
[1723972080393,0.0022285,59838.0,59837.0,2.26988102]
[1723972082160,0.0022285,59838.0,59837.0,2.50384902]
[1723972082362,0.0022285,59838.0,59837.0,2.58514902]
[1723972083376,0.0022285,59838.0,59837.0,2.564488]
[1723972083572,0.0022285,59838.0,59837.0,2.58514955]
[1723972083727,0.0022285,59838.0,59837.0,2.83102881]
[1723972083947,0.0022285,59838.0,59837.0,3.12847437]
[1723972084597,0.0022285,59838.0,59837.0,3.2862609]
[1723972085090,0.0002,59839.0,59838.0,0.957877]
[1723972085315,0.00020226,59850.0,59849.0,0.351883]
[1723972085663,0.00020226,59850.0,59849.0,1.60201337]
[1723972085856,0.00020226,59850.0,59849.0,3.2599811]
[1723972086526,0.00020226,59850.0,59849.0,3.5169031]
[1723972086695,0.00020226,59850.0,59849.0,3.36807246]
[1723972087154,0.00020226,59850.0,59849.0,3.38207246]
[1723972087559,0.0002,59859.0,59858.0,0.194543]
[1723972087683,0.0002,59859.0,59858.0,0.428429]
[1723972087909,0.0002,59859.0,59858.0,0.68295256]
[1723972088111,0.0002,59859.0,59858.0,0.74335256]
[1723972088811,0.0002,59859.0,59858.0,0.75335256]
[1723972089872,0.0002,59859.0,59858.0,0.75935256]
[1723972090295,0.0002,59859.0,59858.0,2.25935256]
[1723972091743,0.0002,59859.0,59858.0,2.238715]
[1723972091943,0.0002,59859.0,59858.0,2.2593514]
[1723972092368,0.0002,59859.0,59858.0,2.238715]
[1723972092569,0.0002,59859.0,59858.0,2.472601]
[1723972095549,0.0002,59859.0,59858.0,2.178315]
[1723972095780,0.1399,59869.0,59862.0,0.233869]
[1723972095781,0.3693133,59869.0,59862.0,0.233869]
[1723972095984,0.116925,59868.0,59863.0,0.116933]
[1723972096597,0.2523923,59869.0,59865.0,0.116929]
[1723972097562,0.2523923,59869.0,59863.0,0.350797]
[1723972097563,0.116923,59868.0,59863.0,0.350797]
[1723972097737,0.1354693,59869.0,59864.0,0.00334041]
[1723972097939,0.2523913,59869.0,59865.0,0.116928]
[1723972098168,0.2523913,59869.0,59866.0,0.0033404]
[1723972098366,0.1354693,59869.0,59866.0,0.1202674]
[1723972098766,0.11732328,59870.0,59866.0,0.1202674]
[1723972098966,0.00040328,59870.0,59867.0,0.116925]
[1723972099231,0.00040328,59870.0,59868.0,0.00334026]
[1723972100977,0.00040328,59870.0,59866.0,0.116926]
[1723972101172,0.00040328,59870.0,59868.0,1.6397]
[1723972101173,0.00122728,59870.0,59868.0,1.6397]
[1723972101379,0.00122728,59870.0,59869.0,0.116921]
[1723972101643,0.00122728,59870.0,59869.0,0.350764]
[1723972101994,0.00122728,59870.0,59869.0,0.584607]
[1723972102201,0.00122728,59870.0,59869.0,2.25940454]
[1723972102556,0.00825,59878.0,59877.0,0.58453]
[1723972102759,0.00825,59878.0,59877.0,0.66113]
[1723972103103,0.00825,59878.0,59877.0,2.16113]
[1723972103309,0.00825,59878.0,59877.0,2.62959654]
[1723972103510,0.00825,59878.0,59877.0,1.756606]
[1723972103711,0.00825,59878.0,59877.0,1.5906]
[1723972103909,0.00825,59878.0,59877.0,0.207506]
[1723972104113,0.00825,59878.0,59877.0,0.441318]
[1723972104478,0.00825,59878.0,59877.0,2.20313]
[1723972105900,0.00825,59878.0,59877.0,2.67259654]
[1723972106098,0.00825,59878.0,59877.0,2.64459654]
[1723972106231,0.00825,59878.0,59877.0,2.63059654]
[1723972106435,0.00825,59878.0,59877.0,2.64059654]
[1723972106630,0.00825,59878.0,59877.0,2.64459654]
[1723972107003,0.00825,59878.0,59877.0,2.42378454]
[1723972107131,0.00825,59878.0,59877.0,1.864718]
[1723972107339,0.00825,59878.0,59877.0,1.878718]
[1723972107548,0.00825,59878.0,59877.0,1.528]
[1723972107766,0.00825,59878.0,59877.0,1.54588]
[1723972108424,0.125154,59878.0,59877.0,1.54588]
[1723972108627,0.00825,59878.0,59877.0,1.54588]
[1723972108922,0.442162,59878.0,59877.0,1.54588]
[1723972109137,0.442162,59878.0,59877.0,0.04588]
[1723972109138,0.67597,59878.0,59877.0,0.04588]
[1723972109745,0.442162,59878.0,59877.0,0.04588]
[1723972110239,0.67597,59878.0,59877.0,0.04588]
[1723972111130,0.98788455,59878.0,59877.0,0.04588]
[1723972111347,1.04788455,59878.0,59877.0,0.03188]
[1723972111805,1.04788455,59878.0,59877.0,0.17328]
[1723972111806,0.00825,59878.0,59877.0,0.17328]
[1723972112007,0.00825,59878.0,59877.0,0.68155254]